fUST/lending_fUST_20251206
["ID","MTS","AMOUNT","RATE_DAILY","PERIOD"]
[396486579,1764991843657,-500.0,0.00011694,2]
[396486580,1764991843670,-500.0,0.00011694,2]
[396486581,1764991843684,-500.0,0.00011694,2]
[396486582,1764991843695,-212.40562591,0.00011694,2]
[396486583,1764991843708,-287.59437409,0.00011694,2]
[396486584,1764991843718,-500.0,0.00011694,2]
[396486585,1764991843728,-500.0,0.00011694,2]
[396486586,1764991843738,-500.0,0.00011694,2]
[396486587,1764991843748,-500.0,0.00011694,2]
[396486588,1764991843763,-500.0,0.00011694,2]
[396486589,1764991843772,-500.0,0.00011694,2]
[396486590,1764991843782,-500.0,0.00011694,2]
[396486591,1764991843793,-500.0,0.00011694,2]
[396486592,1764991843804,-500.0,0.00011694,2]
[396486593,1764991843814,-500.0,0.00011694,2]
[396486594,1764991843826,-500.0,0.00011694,2]
[396486595,1764991843838,-500.0,0.00011694,2]
[396486596,1764991843848,-500.0,0.00011694,2]
[396486597,1764991843858,-500.0,0.00011694,2]
[396486598,1764991843868,-500.0,0.00011694,2]
[396486599,1764991843878,-500.0,0.00011694,2]
[396486600,1764991843888,-256.83765629,0.00011694,2]
[396486601,1764991843901,-243.16234371,0.00011694,2]
[396486602,1764991843911,-500.0,0.00011694,2]
[396486603,1764991843923,-500.0,0.00011694,2]
[396486604,1764991843935,-1582.74,0.00011694,2]
[396486605,1764991843945,-500.0,0.00011694,2]
[396486606,1764991843955,-500.0,0.00011694,2]
[396486607,1764991843966,-318.7395947,0.00011694,2]
[396486608,1764991843976,-500.0,0.00011694,2]
[396486609,1764991843986,-500.0,0.00011694,2]
[396486610,1764991843996,-388.89806369,0.00011694,2]
[396486612,1764991872469,152.29,0.0001,2]
[396486613,1764991872766,152.29,0.000101,2]
[396486614,1764991873693,152.29,0.000102,2]
[396486615,1764991874094,152.29,0.000103,2]
[396486616,1764991874366,152.29,0.000104,2]
[396486617,1764991874696,152.29,0.000106,2]
[396486618,1764991874968,152.29,0.000107,2]
[396486619,1764991875241,152.29,0.000108,2]
[396486620,1764991875530,152.29,0.000109,2]
[396486621,1764991875934,152.29,0.00011,2]
[396486622,1764991876215,152.29,0.000111,2]
[396486623,1764991876540,152.29,0.000112,2]
[396486624,1764991904474,157.09,0.0001,2]
[396486625,1764991905338,157.09,0.0001,2]
[396486626,1764991931671,152.29,0.0001,2]
[396486627,1764991931952,152.29,0.000102,2]
[396486628,1764991932240,152.29,0.000103,2]
[396486629,1764991932518,152.29,0.000105,2]
[396486630,1764991932792,152.29,0.000107,2]
[396486631,1764991933060,152.29,0.000108,2]
[396486632,1764991933354,152.29,0.00011,2]
[396486633,1764991934284,152.29,0.000112,2]
[396486634,1764991989753,152.28,0.0001,2]
[396486635,1764991990110,152.28,0.000103,2]
[396486636,1764991990394,152.28,0.000105,2]
[396486637,1764991990684,152.28,0.000108,2]
[396486638,1764991990957,152.28,0.00011,2]
[396486639,1764992051051,152.28,0.0001,2]
[396486640,1764992051336,152.28,0.000104,2]
[396486641,1764992051623,152.28,0.000107,2]
[396486642,1764992051983,152.28,0.000111,2]
[396486643,1764992064148,2787.9570632,0.00011255,2]
[396486644,1764992106202,152.29,0.0001,2]
[396486645,1764992106475,152.29,0.000106,2]
[396486646,1764992106750,152.29,0.000111,2]
[396486648,1764992164593,152.28,0.0001,2]
[396486649,1764992164905,152.28,0.00011,2]
[396486650,1764992225212,152.29,0.0001,2]
[396486651,1764992283747,502.56,0.00010839,2]
[396486652,1764992284021,502.56,0.00010839,2]
[396486653,1764992284053,152.28,0.0001,2]
[396486655,1764992434023,264.20120536,0.00011001,2]
[396486656,1764992436631,6252.0,0.00011255,2]
[396486657,1764992436665,475.56216965,0.00011001,2]
[396486658,1764992439401,845.44385716,0.00011001,2]
[396486659,1764992441243,1321.00602681,0.00011001,2]
[396486660,1764992443400,1902.2486786,0.00011001,2]
[396486661,1764992445670,2586.58264073,0.00011001,2]
[396486667,1764992548603,2052.23360042,0.00011247,2]
[396486670,1764992883981,178.0,0.000203,120]
[396486672,1764992944703,250.0,0.00013101,3]
[396486698,1764993032509,-173.14472553,0.00011363,2]
[396486700,1764993032520,-243.0,0.00011363,2]
[396486702,1764993032529,-160.0,0.00011363,2]
[396486704,1764993032538,-300.0,0.00011588,2]
[396486706,1764993032548,-2354.53,0.00011589,2]
[396486708,1764993032557,-500.0,0.00011589,2]
[396486709,1764993032566,-500.0,0.00011589,2]
[396486710,1764993032575,-500.0,0.00011589,2]
[396486711,1764993032584,-1944.77,0.00011589,2]
[396486712,1764993032593,-1188.78,0.00011589,2]
[396486714,1764993032603,-2119.5,0.00011589,2]
[396486715,1764993032612,-500.0,0.00011589,2]
[396486717,1764993032620,-204.36622306,0.00011589,2]
[396486718,1764993032630,-500.0,0.00011589,2]
[396486719,1764993032639,-281.09691575,0.00011589,2]
[396486720,1764993032648,-500.0,0.00011589,2]
[396486721,1764993032657,-500.0,0.00011589,2]
[396486722,1764993032666,-483.29766791,0.00011589,2]
[396486723,1764993032675,-36792.32130967,0.0001159,2]
[396486724,1764993037372,295.83108392,0.00011111,2]
[396486725,1764993038758,-500.0,0.00011589,2]
[396486726,1764993038768,-558.67,0.00011589,2]
[396486727,1764993038778,-9575.60124687,0.0001159,2]
[396486756,1764993046720,-346.96627136,0.00011462,2]
[396486762,1764993195194,3000.0,0.000152,30]
[396486763,1764993195780,3000.0,0.0001521,30]
[396486764,1764993196339,3000.0,0.0001522,30]
[396486765,1764993196744,3000.0,0.0001523,30]
[396486766,1764993197098,3000.0,0.0001524,30]
[396486767,1764993197471,3000.0,0.0001525,30]
[396486768,1764993227934,247.89154066,0.00011111,2]
[396486784,1764993779625,2052.23360042,0.00011248,2]
[396486785,1764993787764,209.73439016,0.00011255,2]
[396486798,1764994084844,289.34,0.00010839,2]
[396486799,1764994085152,289.34,0.00010839,2]
[396486800,1764994085428,289.32,0.00010839,2]
[396486801,1764994143825,250.0,0.000131,3]
[396486837,1764994231742,-243.0,0.00011342,2]
[396486839,1764994231752,-172.68183102,0.00011342,2]
[396486841,1764994231761,-224.62224866,0.00011388,2]
[396486843,1764994231772,-3376.82686378,0.00011388,2]
[396486845,1764994231781,-88.60313622,0.0001148,2]
[396486856,1764994231916,250.62293232,0.00011094,2]
[396486880,1764994241454,-3512.84597622,0.0001148,2]
[396486881,1764994241464,-2006.56654569,0.00011482,2]
[396486882,1764994241473,-535.85286426,0.00011482,2]
[396486883,1764994241482,-300.0,0.00011486,2]
[396486884,1764994241491,-500.0,0.00011486,2]
[396486885,1764994241500,-965.99,0.00011486,2]
[396486886,1764994241510,-546.76784103,0.00011486,2]
[396486887,1764994241519,-10105.62886431,0.00011487,2]
[396486895,1764994245967,-604.017359,0.00011487,2]
[396486896,1764994245980,-34060.52336846,0.00011487,2]
[396486904,1764994633501,2052.23360042,0.00011238,2]
[396486908,1764995131194,2052.23360042,0.00011119,2]
[396486929,1764995343009,250.0,0.00013099,3]
[396486979,1764995431968,-300.0,0.00011287,2]
[396486980,1764995431979,-242.0,0.00011287,2]
[396486981,1764995431988,-172.2281944,0.00011287,2]
[396486982,1764995431998,-10804.34733732,0.00011288,2]
[396486983,1764995432008,-250.0,0.0001138,2]
[396486984,1764995432017,-250.0,0.0001138,2]
[396486985,1764995432027,-250.0,0.0001138,2]
[396486986,1764995432036,-2312.83697232,0.0001138,2]
[396486987,1764995432045,-250.0,0.0001138,2]
[396486988,1764995432054,-250.0,0.0001138,2]
[396486989,1764995432063,-250.0,0.0001138,2]
[396486990,1764995432073,-250.0,0.0001138,2]
[396486991,1764995432083,-250.0,0.0001138,2]
[396486992,1764995432095,-4496.15507419,0.0001138,2]
[396486993,1764995432106,-500.0,0.00011385,2]
[396486994,1764995432117,-2256.43,0.00011385,2]
[396486995,1764995432127,-500.0,0.00011385,2]
[396486996,1764995432136,-2031.18,0.00011385,2]
[396486997,1764995432146,-500.0,0.00011385,2]
[396486998,1764995432156,-1863.73,0.00011385,2]
[396486999,1764995432167,-535.39,0.00011385,2]
[396487000,1764995432177,-1139.25,0.00011385,2]
[396487001,1764995432187,-500.0,0.00011385,2]
[396487002,1764995432197,-500.0,0.00011385,2]
[396487003,1764995432206,-848.59,0.00011385,2]
[396487004,1764995432217,-1148.56,0.00011385,2]
[396487005,1764995432227,-500.0,0.00011386,2]
[396487006,1764995432237,-500.0,0.00011386,2]
[396487007,1764995432246,-500.0,0.00011386,2]
[396487008,1764995432256,-500.0,0.00011386,2]
[396487009,1764995432265,-500.0,0.00011386,2]
[396487010,1764995432274,-500.0,0.00011386,2]
[396487011,1764995432284,-661.93,0.00011386,2]
[396487012,1764995432294,-500.0,0.00011386,2]
[396487013,1764995432303,-500.0,0.00011386,2]
[396487014,1764995432312,-500.0,0.00011386,2]
[396487015,1764995432521,-500.0,0.00011386,2]
[396487016,1764995432531,-1087.51,0.00011386,2]
[396487017,1764995432540,-500.0,0.00011386,2]
[396487018,1764995432549,-245.43404842,0.00011386,2]
[396487019,1764995432558,-500.0,0.00011386,2]
[396487020,1764995432567,-172.13685422,0.00011386,2]
[396487021,1764995432576,-678.3,0.00011386,2]
[396487022,1764995432585,-500.0,0.00011386,2]
[396487023,1764995432594,-827.94,0.00011386,2]
[396487024,1764995432603,-541.59,0.00011386,2]
[396487025,1764995432612,-500.0,0.00011386,2]
[396487026,1764995432621,-500.0,0.00011386,2]
[396487027,1764995432630,-500.0,0.00011386,2]
[396487028,1764995432640,-500.0,0.00011386,2]
[396487029,1764995432649,-500.0,0.00011386,2]
[396487030,1764995432658,-582.08,0.00011386,2]
[396487031,1764995432667,-937.84,0.00011386,2]
[396487032,1764995432676,-863.45,0.00011386,2]
[396487033,1764995432685,-382.73748872,0.00011386,2]
[396487034,1764995432694,-20788.5389081,0.00011387,2]
[396487037,1764995437965,-500.0,0.00011385,2]
[396487038,1764995437976,-500.0,0.00011385,2]
[396487039,1764995437985,-69.1624148,0.00011386,2]
[396487040,1764995438021,-430.8375852,0.00011386,2]
[396487041,1764995438030,-3850.42121623,0.00011387,2]
[396487042,1764995438077,-498.8032675,0.00011387,2]
[396487043,1764995440266,-390.0,0.00011387,2]
[396487054,1764995443163,-314.03838873,0.00011387,2]
[396487063,1764995446065,-500.0,0.00011385,2]
[396487064,1764995446075,-755.23123063,0.00011387,2]
[396487070,1764995617756,2052.23360042,0.00011011,2]
[396487072,1764995727461,-300.0,0.00011378,2]
[396487073,1764995727483,-1200.0,0.00011378,2]
[396487074,1764995727513,-1144.5672028,0.00011379,2]
[396487075,1764995727541,-171.78363051,0.00011379,2]
[396487076,1764995727566,-500.0,0.00011379,2]
[396487077,1764995727588,-500.0,0.00011379,2]
[396487078,1764995727613,-500.0,0.00011379,2]
[396487079,1764995727638,-2162.41,0.00011379,2]
[396487080,1764995727659,-500.0,0.00011379,2]
[396487081,1764995727679,-500.0,0.00011379,2]
[396487082,1764995727701,-1946.55,0.00011379,2]
[396487083,1764995727725,-1786.08,0.00011379,2]
[396487084,1764995727747,-1091.78,0.00011379,2]
[396487085,1764995727769,-513.08,0.00011379,2]
[396487086,1764995727790,-500.0,0.00011379,2]
[396487087,1764995727810,-411.36655448,0.00011379,2]
[396487088,1764995727831,-1100.7,0.00011379,2]
[396487089,1764995727851,-500.0,0.00011379,2]
[396487090,1764995727871,-500.0,0.00011379,2]
[396487091,1764995727891,-500.0,0.00011379,2]
[396487092,1764995727911,-500.0,0.00011379,2]
[396487093,1764995727932,-264.78205645,0.00011379,2]
[396487094,1764995727951,-1737.57,0.00011379,2]
[396487095,1764995727971,-2312.83697232,0.0001138,2]
[396487096,1764995727991,-4496.15507419,0.0001138,2]
[396487097,1764995728010,-500.0,0.00011384,2]
[396487098,1764995728031,-500.0,0.00011384,2]
[396487099,1764995728050,-500.0,0.00011385,2]
[396487100,1764995728070,-500.0,0.00011385,2]
[396487101,1764995728090,-500.0,0.00011385,2]
[396487102,1764995728110,-569.68,0.00011385,2]
[396487103,1764995728130,-500.0,0.00011385,2]
[396487104,1764995728150,-500.0,0.00011385,2]
[396487105,1764995728171,-1042.2,0.00011385,2]
[396487106,1764995728191,-500.0,0.00011385,2]
[396487107,1764995728211,-500.0,0.00011385,2]
[396487108,1764995728232,-500.0,0.00011385,2]
[396487109,1764995728252,-500.0,0.00011385,2]
[396487110,1764995728272,-500.0,0.00011385,2]
[396487111,1764995728292,-500.0,0.00011385,2]
[396487112,1764995728312,-650.04,0.00011385,2]
[396487113,1764995728332,-519.03,0.00011385,2]
[396487114,1764995728354,-793.45,0.00011385,2]
[396487115,1764995728376,-500.0,0.00011385,2]
[396487116,1764995728408,-500.0,0.00011385,2]
[396487117,1764995728439,-500.0,0.00011385,2]
[396487118,1764995728472,-175.5250824,0.00011385,2]
[396487119,1764995728499,-500.0,0.00011385,2]
[396487120,1764995728525,-500.0,0.00011385,2]
[396487121,1764995728552,-500.0,0.00011385,2]
[396487122,1764995728587,-500.0,0.00011385,2]
[396487123,1764995728615,-969.18,0.00011385,2]
[396487124,1764995728647,-500.0,0.00011385,2]
[396487125,1764995728672,-500.0,0.00011385,2]
[396487126,1764995728699,-500.0,0.00011385,2]
[396487127,1764995728724,-595.14,0.00011385,2]
[396487128,1764995728747,-500.0,0.00011385,2]
[396487129,1764995728771,-500.0,0.00011385,2]
[396487130,1764995728796,-500.0,0.00011385,2]
[396487131,1764995728822,-557.82,0.00011385,2]
[396487132,1764995728844,-500.0,0.00011385,2]
[396487133,1764995728868,-500.0,0.00011385,2]
[396487134,1764995728894,-500.0,0.00011385,2]
[396487135,1764995728919,-500.0,0.00011385,2]
[396487136,1764995728944,-500.0,0.00011385,2]
[396487137,1764995728970,-1288.4,0.00011385,2]
[396487138,1764995728996,-898.76,0.00011385,2]
[396487139,1764995729024,-827.48,0.00011385,2]
[396487140,1764995729050,-500.0,0.00011385,2]
[396487141,1764995729074,-500.0,0.00011385,2]
[396487142,1764995729098,-500.0,0.00011385,2]
[396487143,1764995729122,-500.0,0.00011385,2]
[396487144,1764995729147,-500.0,0.00011385,2]
[396487145,1764995729177,-615.92,0.00011385,2]
[396487146,1764995729201,-543.86,0.00011385,2]
[396487147,1764995729227,-500.0,0.00011385,2]
[396487148,1764995729251,-500.0,0.00011385,2]
[396487149,1764995729280,-1202.21,0.00011385,2]
[396487150,1764995729307,-2058.96,0.00011386,2]
[396487151,1764995729332,-500.0,0.00011386,2]
[396487152,1764995729354,-1202.0,0.00011386,2]
[396487153,1764995729376,-500.0,0.00011386,2]
[396487154,1764995729401,-500.0,0.00011386,2]
[396487155,1764995729425,-500.0,0.00011386,2]
[396487156,1764995729457,-1333.49,0.00011386,2]
[396487157,1764995729481,-4046.26,0.00011386,2]
[396487158,1764995729505,-530.27,0.00011386,2]
[396487159,1764995729528,-1141.44,0.00011386,2]
[396487160,1764995729552,-500.0,0.00011386,2]
[396487161,1764995729575,-500.0,0.00011386,2]
[396487162,1764995729598,-500.0,0.00011386,2]
[396487163,1764995729622,-1987.67,0.00011386,2]
[396487164,1764995729650,-581.22,0.00011386,2]
[396487165,1764995729675,-500.0,0.00011386,2]
[396487166,1764995729700,-500.0,0.00011386,2]
[396487167,1764995729729,-3415.96,0.00011386,2]
[396487168,1764995729753,-570.42,0.00011386,2]
[396487169,1764995729777,-500.0,0.00011386,2]
[396487170,1764995729801,-500.0,0.00011386,2]
[396487171,1764995729825,-1011.46,0.00011386,2]
[396487172,1764995729849,-1082.89,0.00011386,2]
[396487173,1764995729876,-500.0,0.00011386,2]
[396487174,1764995729900,-7990.13,0.00011386,2]
[396487175,1764995729924,-267.9162421,0.00011386,2]
[396487176,1764995729952,-282562.55718475,0.00011387,2]
[396487177,1764995882986,361.35,0.00010839,2]
[396487178,1764995883252,361.35,0.00010839,2]
[396487185,1764996102016,10000.0,0.0002,120]
[396487187,1764996127849,2052.23360042,0.00011187,2]
[396487188,1764996136135,10000.0,0.0002,120]
[396487189,1764996146612,10000.0,0.0002,120]
[396487191,1764996207855,10000.0,0.00021,99]
[396487193,1764996236610,10000.0,0.000211,99]
[396487206,1764996543528,250.0,0.00013098,3]
[396487210,1764996624601,2052.23360042,0.00011143,2]
[396487237,1764996632175,-242.0,0.0001128,2]
[396487239,1764996632184,-122.47342092,0.0001128,2]
[396487245,1764996632232,-410.2083341,0.0001128,2]
[396487247,1764996632243,-607.19807407,0.0001128,2]
[396487298,1764996638387,-428.33525767,0.0001128,2]
[396487300,1764996638396,-168.3479579,0.00011283,2]
[396487302,1764996638405,-175.4177315,0.00011284,2]
[396487304,1764996638417,-86.5822685,0.00011284,2]
[396487306,1764996638426,-500.0,0.00011284,2]
[396487308,1764996638436,-500.0,0.00011284,2]
[396487311,1764996638445,-500.0,0.00011284,2]
[396487314,1764996638454,-500.0,0.00011284,2]
[396487316,1764996638463,-500.0,0.00011284,2]
[396487318,1764996638472,-500.0,0.00011284,2]
[396487320,1764996638481,-500.0,0.00011284,2]
[396487322,1764996638491,-500.0,0.00011284,2]
[396487324,1764996638500,-500.0,0.00011284,2]
[396487326,1764996638509,-500.0,0.00011284,2]
[396487328,1764996638518,-238.88521423,0.00011284,2]
[396487330,1764996638528,-500.0,0.00011284,2]
[396487332,1764996638537,-500.0,0.00011284,2]
[396487334,1764996638546,-500.0,0.00011284,2]
[396487336,1764996638556,-504.1128255,0.00011284,2]
[396487338,1764996638564,-500.0,0.00011284,2]
[396487340,1764996638574,-50.10218055,0.00011284,2]
[396487364,1764996640570,-449.89781945,0.00011284,2]
[396487365,1764996640580,-500.0,0.00011284,2]
[396487366,1764996640590,-402.52715623,0.00011284,2]
[396487400,1764996646382,-97.47284377,0.00011284,2]
[396487401,1764996646391,-500.0,0.00011284,2]
[396487402,1764996646400,-10.64207339,0.00011284,2]
[396487403,1764996646542,-489.35792661,0.00011284,2]
[396487404,1764996646551,-500.0,0.00011284,2]
[396487405,1764996646561,-384.15463693,0.00011284,2]
[396487407,1764996732923,638.18319425,0.000131,3]
[396487412,1764996795777,3000.0,0.000152,30]
[396487413,1764996795887,3000.0,0.0001521,30]
[396487414,1764996796590,3000.0,0.0001522,30]
[396487416,1764996800125,3000.0,0.0001523,30]
[396487417,1764996800894,5381.791035,0.0001524,30]
[396487430,1764996889908,585778.05422046,0.00011187,2]
[396487527,1764996963460,8658.57091694,0.00012,7]
[396487555,1764997062092,241577.33926433,0.00011186,2]
[396487558,1764997066777,-7194.31938484,0.00011186,2]
[396487559,1764997067042,-10000.01,0.00011186,2]
[396487560,1764997067500,-10000.01,0.00011186,2]
[396487561,1764997067549,-10000.01,0.00011186,2]
[396487562,1764997067763,-10000.01,0.00011186,2]
[396487563,1764997068305,-10000.01,0.00011186,2]
[396487564,1764997068735,-10000.01,0.00011186,2]
[396487565,1764997068956,-10000.01,0.00011186,2]
[396487566,1764997069176,-10000.01,0.00011186,2]
[396487578,1764997082678,150.71,9.8e-05,2]
[396487579,1764997083015,150.71,9.9e-05,2]
[396487580,1764997083318,150.71,0.000101,2]
[396487581,1764997083588,150.71,0.000102,2]
[396487582,1764997083970,5000.0,0.00011,2]
[396487583,1764997086639,150.71,0.000104,2]
[396487584,1764997087050,150.71,0.000105,2]
[396487585,1764997087452,150.71,0.000107,2]
[396487586,1764997087938,150.71,0.000109,2]
[396487587,1764997088125,150.71,0.00011,2]
[396487588,1764997090774,-168.0,0.00011185,2]
[396487589,1764997090814,-9664.01,0.00011186,2]
[396487590,1764997090948,-10000.01,0.00011186,2]
[396487591,1764997091219,-10000.01,0.00011186,2]
[396487592,1764997091393,-10000.01,0.00011186,2]
[396487593,1764997091696,-10000.01,0.00011186,2]
[396487594,1764997091830,-10000.01,0.00011186,2]
[396487595,1764997091856,761.45041389,0.00011,2]
[396487596,1764997092060,-10000.01,0.00011186,2]
[396487597,1764997094071,-1668.46915391,0.00011186,2]
[396487598,1764997094094,-6663.07169218,0.00011186,2]
[396487612,1764997100877,578.3387515,0.00011186,2]
[396487613,1764997107904,150.0,7.409e-05,2]
[396487614,1764997108390,150.0,8.083e-05,2]
[396487615,1764997108724,5000.0,0.00011186,2]
[396487616,1764997108755,195.59,8.757e-05,2]
[396487617,1764997109155,260.78,9.43e-05,2]
[396487618,1764997109571,325.98,0.00010104,2]
[396487619,1764997110457,391.18,0.00010777,2]
[396487621,1764997117338,2948.1412485,0.00011186,2]
[396487622,1764997117361,2051.8587515,0.00011186,2]
[396487625,1764997124146,-150.71,0.000112,2]
[396487642,1764997132604,5000.0,0.000112,2]
[396487645,1764997140890,4698.59,0.000112,2]
[396487646,1764997140915,301.41,0.000112,2]
[396487650,1764997148774,150.0,0.000112,2]
[396487651,1764997150595,171.89,0.0001,2]
[396487652,1764997150921,171.89,0.000101,2]
[396487653,1764997151300,171.89,0.000102,2]
[396487654,1764997151721,171.89,0.000102,2]
[396487655,1764997152000,171.89,0.000103,2]
[396487656,1764997152281,171.89,0.000104,2]
[396487657,1764997152568,171.89,0.000105,2]
[396487658,1764997152960,171.89,0.000106,2]
[396487659,1764997153367,171.89,0.000107,2]
[396487660,1764997153648,171.89,0.000107,2]
[396487661,1764997153988,171.89,0.000108,2]
[396487662,1764997154289,171.89,0.000109,2]
[396487663,1764997154556,171.89,0.00011,2]
[396487664,1764997154918,171.89,0.000111,2]
[396487665,1764997155927,171.89,0.000111,2]
[396487666,1764997156250,171.89,0.000112,2]
[396487667,1764997157426,5000.0,0.000112,2]
[396487668,1764997165707,1798.36,0.000112,2]
[396487669,1764997165730,3201.64,0.000112,2]
[396487670,1764997180715,5000.0,0.000112,2]
[396487671,1764997187295,150.0,7.427e-05,2]
[396487672,1764997188146,296.24,8.102e-05,2]
[396487673,1764997188563,444.36,8.777e-05,2]
[396487674,1764997188977,592.48,9.452e-05,2]
[396487675,1764997189106,315.29,0.000112,2]
[396487676,1764997189130,4684.71,0.000112,2]
[396487677,1764997189385,740.6,0.00010127,2]
[396487678,1764997189788,888.72,0.00010802,2]
[396487683,1764997205062,3685.98,0.000112,2]
[396487684,1764997205087,1314.02,0.000112,2]
[396487686,1764997212707,5000.0,0.000112,2]
[396487688,1764997214787,272.59,0.0001,2]
[396487689,1764997215107,272.59,0.000101,2]
[396487691,1764997215420,272.59,0.000102,2]
[396487692,1764997215713,272.59,0.000102,2]
[396487693,1764997216024,272.59,0.000103,2]
[396487694,1764997216334,272.59,0.000104,2]
[396487695,1764997216612,272.59,0.000105,2]
[396487697,1764997216886,272.59,0.000106,2]
[396487698,1764997217252,272.59,0.000107,2]
[396487699,1764997217518,272.59,0.000107,2]
[396487700,1764997217775,272.59,0.000108,2]
[396487701,1764997218164,272.59,0.000109,2]
[396487702,1764997218430,272.59,0.00011,2]
[396487703,1764997218727,142.32,0.000111,2]
[396487704,1764997218750,130.27,0.000111,2]
[396487705,1764997219203,272.59,0.000111,2]
[396487706,1764997219358,272.59,0.000112,2]
[396487710,1764997228560,5000.0,0.000112,2]
[396487721,1764997236860,5000.0,0.000112,2]
[396487728,1764997252013,5000.0,0.000112,2]
[396487732,1764997259839,0.01,0.000112,2]
[396487733,1764997259863,1155.76107514,0.000112,2]
[396487737,1764997269111,153.3,7.399e-05,2]
[396487738,1764997269507,306.61,8.071e-05,2]
[396487740,1764997269914,459.91,8.744e-05,2]
[396487741,1764997270299,613.22,9.416e-05,2]
[396487742,1764997270672,766.52,0.00010089,2]
[396487743,1764997271048,919.82,0.00010762,2]
[396487746,1764997274220,185.36,0.0001,2]
[396487747,1764997274466,185.36,0.000101,2]
[396487748,1764997274744,185.36,0.000102,2]
[396487749,1764997275008,185.36,0.000102,2]
[396487750,1764997275073,4883.42892486,0.000112,2]
[396487751,1764997275096,116.57107514,0.000112,2]
[396487752,1764997275484,185.36,0.000103,2]
[396487754,1764997275748,185.36,0.000104,2]
[396487755,1764997276037,185.36,0.000105,2]
[396487756,1764997276315,185.36,0.000106,2]
[396487757,1764997276694,185.36,0.000107,2]
[396487758,1764997277021,185.36,0.000107,2]
[396487759,1764997277293,185.36,0.000108,2]
[396487760,1764997277670,185.36,0.000109,2]
[396487761,1764997277990,185.36,0.00011,2]
[396487764,1764997278380,185.36,0.000111,2]
[396487765,1764997278692,185.36,0.000111,2]
[396487766,1764997278971,185.36,0.000112,2]
[396487769,1764997282869,5000.0,0.000112,2]
[396487776,1764997298073,2659.11892486,0.000112,2]
[396487777,1764997298096,2340.88107514,0.000112,2]
[396487779,1764997304707,165.95,0.0001,2]
[396487780,1764997305694,165.95,0.0001,2]
[396487781,1764997305930,5000.0,0.000112,2]
[396487782,1764997306595,165.95,0.0001,2]
[396487783,1764997307471,165.95,0.0001,2]
[396487784,1764997308333,165.95,0.0001,2]
[396487786,1764997322332,1829.37892486,0.000112,2]
[396487787,1764997322359,3170.62107514,0.000112,2]
[396487794,1764997330640,5000.0,0.000112,2]
[396487795,1764997334706,150.05,0.0001,2]
[396487796,1764997335171,150.05,0.000101,2]